bitfinex/quotes_SOLUSD_20240826
["timestamp","ask_amount","ask_price","bid_price","bid_amount"]
[1724680320724,44.97447717,160.23,160.2,6.2419]
[1724680321044,44.97447717,160.23,160.2,6.2421]
[1724680321353,44.97447717,160.23,160.19,37.5425]
[1724680321641,44.97447717,160.23,160.19,31.3]
[1724680321852,44.97447717,160.23,160.16,21.8524]
[1724680321853,6.2417,160.22,160.16,21.8524]
[1724680322218,6.2417,160.22,160.17,6.2432]
[1724680322913,44.97447717,160.23,160.18,6.2429]
[1724680323242,44.97447717,160.23,160.18,7.49146304]
[1724680323448,44.97447717,160.23,160.18,6.2429]
[1724680323826,44.97447717,160.23,160.19,6.2424]
[1724680324037,0.8277002,160.24,160.21,6.2415]
[1724680324233,0.8277002,160.24,160.2,15.6048]
[1724680324436,0.8277002,160.24,160.21,12.8531]
[1724680324737,0.8277002,160.24,160.2,15.6048]
[1724680324738,35.96774488,160.23,160.2,15.6048]
[1724680324931,35.96774488,160.23,160.2,21.8469]
[1724680325130,0.8277002,160.24,160.2,21.8469]
[1724680325345,0.8277002,160.24,160.21,6.2416]
[1724680326050,0.8277002,160.24,160.23,6.241]
[1724680326361,0.8277002,160.24,160.22,6.2412]
[1724680327461,0.8277002,160.24,160.21,6.2417]
[1724680327664,0.8277002,160.24,160.23,22.7824]
[1724680328154,0.8277002,160.24,160.23,16.5414]
[1724680328357,0.8277002,160.24,160.23,24.03028373]
[1724680328655,0.8277002,160.24,160.23,69.03028373]
[1724680329452,0.8277002,160.24,160.23,75.63148373]
[1724680329623,0.8277002,160.24,160.23,74.3836]
[1724680329820,0.8277002,160.24,160.23,68.1426]
[1724680330058,0.8277002,160.24,160.23,23.1426]
[1724680330543,0.8277002,160.24,160.23,30.63161127]
[1724680331337,0.8277002,160.24,160.23,75.63161127]
[1724680331737,0.8277002,160.24,160.23,74.3836]
[1724680331939,0.8277002,160.24,160.23,75.63148196]
[1724680332153,0.8277002,160.24,160.23,74.3836]
[1724680332451,0.8277002,160.24,160.19,37.3749]
[1724680332827,0.8277002,160.24,160.19,43.6171]
[1724680333929,7.0684002,160.24,160.19,37.3749]
[1724680334253,0.8277002,160.24,160.19,43.6174]
[1724680334455,0.8277002,160.24,160.2,1.24827388]
[1724680334624,0.8277002,160.24,160.2,7.49037388]
[1724680334826,0.8277002,160.24,160.19,43.6174]
[1724680335027,35.96774488,160.21,160.15,6.4426]
[1724680335232,42.21034488,160.19,160.15,6.4426]
[1724680335651,35.96774488,160.19,160.15,7.69125133]
[1724680335857,35.96774488,160.19,160.15,6.4426]
[1724680336053,42.20984488,160.21,160.15,6.4426]
[1724680336264,35.96774488,160.23,160.16,1.2484649]
[1724680336741,35.96774488,160.23,160.18,6.2428]
[1724680336939,35.96774488,160.23,160.17,6.2433]
[1724680337245,35.96774488,160.23,160.18,1.24837486]
[1724680337443,0.8277002,160.24,160.19,6.2422]
[1724680337651,0.8277002,160.24,160.2,45.0]
[1724680337861,0.8277002,160.24,160.2,60.6046]
[1724680338162,0.8277002,160.24,160.2,66.8464]
[1724680338371,35.96774488,160.23,160.16,15.6085]
[1724680338540,35.96774488,160.23,160.17,71.243]
[1724680338736,42.21024488,160.19,160.18,1.24833109]
[1724680338945,42.21024488,160.19,160.15,6.4426]
[1724680338946,42.21064488,160.19,160.15,6.4426]
[1724680339369,6.2417,160.22,160.15,6.4426]
[1724680339666,35.96774488,160.21,160.15,6.4426]
[1724680339836,42.20984488,160.21,160.15,6.4426]
[1724680340737,42.20984488,160.21,160.15,12.6867]
[1724680340942,35.96774488,160.21,160.15,12.6867]
[1724680341857,42.21034488,160.19,160.15,6.4426]
[1724680342233,35.96774488,160.19,160.15,6.4426]
[1724680342433,35.96774488,160.19,160.0,35.96774488]
[1724680342434,42.21184488,160.16,160.11,6.4924]
[1724680342662,35.96774488,160.14,160.11,6.4924]
[1724680344567,35.96774488,160.14,160.1,15.5557]
[1724680344972,35.96774488,160.12,160.07,6.1815]
[1724680345148,35.96774488,160.1,160.07,6.1815]
[1724680346257,35.96774488,160.1,160.03,31.2427]
[1724680346258,42.21464488,160.08,160.03,6.1815]
[1724680346578,35.96774488,160.06,160.03,6.1815]
[1724680346742,6.2453,160.12,160.04,6.248]
[1724680347062,35.96774488,160.12,160.05,6.2477]
[1724680347264,35.96774488,160.12,160.06,1.24926294]
[1724680347478,419.76774488,160.14,160.07,1.24926312]
[1724680347643,419.76774488,160.14,160.09,6.2463]
[1724680347965,383.8,160.22,160.12,6.5173]
[1724680348134,6.2418,160.21,160.14,6.2444]
[1724680348338,6.2422,160.2,160.13,23.10566848]
[1724680348740,51.23153138,160.19,160.13,15.6121]
[1724680348940,44.98883138,160.19,160.13,21.8569]
[1724680349742,428.78883138,160.22,160.17,6.243]
[1724680349948,428.78883138,160.22,160.17,24.02748504]
[1724680350167,428.78883138,160.22,160.17,17.78428504]
[1724680350367,51.23163138,160.19,160.13,16.5357]
[1724680350585,44.98883138,160.19,160.13,16.5357]
[1724680350741,383.8,160.22,160.13,16.5357]
[1724680350942,44.98883138,160.2,160.14,6.2442]
[1724680351165,44.98883138,160.2,160.16,6.2437]
[1724680351764,44.98883138,160.2,160.14,15.6112]
[1724680351962,51.23103138,160.2,160.13,16.5357]
[1724680352163,51.23103138,160.2,160.13,22.7806]
[1724680353168,51.23103138,160.2,160.13,32.1479]
[1724680353169,44.98883138,160.2,160.13,32.1479]
[1724680353351,390.0414,160.22,160.14,1.2486113]
[1724680353549,44.98883138,160.23,160.16,6.2434]
[1724680353952,44.98883138,160.23,160.17,6.2432]
[1724680354346,44.98883138,160.23,160.15,15.6095]
[1724680354347,44.98883138,160.23,160.18,7.49134614]
[1724680354548,0.8277002,160.24,160.21,12.3414]
[1724680354746,0.8277002,160.24,160.21,21.2908]
[1724680354968,0.8277002,160.24,160.21,27.5325]
[1724680355147,0.8277002,160.24,160.21,21.2908]
[1724680355746,0.8277002,160.24,160.19,15.6056]
[1724680355981,51.23003138,160.23,160.17,22.6951]
[1724680356280,52.05713158,160.24,160.17,28.9383]
[1724680356467,52.05713158,160.24,160.18,6.2429]
[1724680356874,45.81653158,160.24,160.19,6.2425]
[1724680357868,0.8277002,160.24,160.2,1.24820833]
[1724680358078,0.8277002,160.24,160.19,45.0]
[1724680358281,0.8277002,160.24,160.2,6.2421]
[1724680359081,0.8277002,160.24,160.19,7.49070897]
[1724680359377,52.05713158,160.24,160.18,21.8495]
[1724680359876,45.81653158,160.24,160.18,21.8495]
[1724680360256,45.81653158,160.24,160.19,7.4906955]
[1724680361686,45.81653158,160.24,160.2,6.2421]
[1724680362460,45.81653158,160.24,160.19,6.2425]
[1724680363283,6.241,160.23,160.17,28.9381]
[1724680363466,6.241,160.23,160.18,1.24842387]
[1724680363672,52.05713158,160.24,160.18,1.24842387]
[1724680363984,52.05713158,160.24,160.18,6.2428]
[1724680367489,45.81653158,160.24,160.17,38.303]
[1724680367793,6.2414,160.22,160.17,44.5462]
[1724680368493,35.98132451,160.22,160.17,44.5462]
[1724680369498,42.22272451,160.22,160.17,38.303]
[1724680370263,35.98132451,160.22,160.17,22.6951]
[1724680370490,6.2418,160.21,160.17,22.6951]
[1724680370995,42.22282451,160.22,160.17,22.6951]
[1724680371496,42.22282451,160.22,160.16,6.2437]
[1724680371866,35.98132451,160.22,160.18,6.2429]
[1724680372066,43.04962471,160.24,160.19,1.24830448]
[1724680372263,36.80902471,160.24,160.19,7.49080448]
[1724680372874,0.8277002,160.24,160.18,15.6069]
[1724680373087,0.8277002,160.24,160.2,6.242]
[1724680374497,36.80902471,160.24,160.19,6.2425]
[1724680374995,43.04962471,160.24,160.19,6.2425]
[1724680375777,35.98132451,160.22,160.15,15.61]
[1724680376076,6.2418,160.21,160.16,6.2436]
[1724680376395,42.22282451,160.22,160.17,6.2432]
[1724680376595,35.98132451,160.22,160.17,6.2432]
[1724680376979,35.98132451,160.22,160.18,7.49135363]
[1724680377467,43.04972471,160.24,160.18,7.49135363]
[1724680377672,43.04972471,160.24,160.19,6.2425]
[1724680377899,43.04972471,160.24,160.2,1.24826863]
[1724680378072,43.04972471,160.24,160.19,1.24830479]
[1724680378273,6.241,160.23,160.18,6.2428]
[1724680378898,6.241,160.23,160.19,1.24831673]
[1724680379087,36.80902471,160.24,160.19,7.49081673]
[1724680379287,36.80902471,160.24,160.19,15.6058]
[1724680379611,36.80902471,160.24,160.2,6.2419]
[1724680379803,36.80902471,160.24,160.19,21.8482]
[1724680380682,43.04972471,160.24,160.19,21.8482]
[1724680381996,36.80902471,160.24,160.19,21.8482]
[1724680382503,36.80902471,160.24,160.2,6.2421]
[1724680383002,36.80902471,160.24,160.2,1.24820023]
[1724680383207,36.80902471,160.24,160.19,21.8482]
[1724680384074,36.80902471,160.24,160.2,1.24824563]
[1724680384273,36.80902471,160.24,160.19,21.8482]
[1724680385299,43.04962471,160.24,160.19,21.8482]
[1724680385775,36.80902471,160.24,160.16,15.6093]
[1724680386092,43.04992471,160.24,160.18,6.2429]
[1724680386401,43.04992471,160.24,160.18,7.49126431]
[1724680386787,35.98132451,160.22,160.17,6.2433]
[1724680389412,35.98132451,160.22,160.16,15.6093]
[1724680389413,35.98132451,160.22,160.13,38.597]
[1724680389708,35.98132451,160.22,160.14,67.81161416]
[1724680389877,35.98132451,160.22,160.17,6.2433]
[1724680390083,36.80902471,160.24,160.18,1.24838668]
[1724680390280,36.80902471,160.24,160.19,6.2423]
[1724680390583,36.80902471,160.24,160.18,1.24838668]
[1724680390584,43.04962471,160.24,160.18,6.2429]
[1724680390794,43.04962471,160.24,160.17,15.6079]
[1724680390795,35.98132451,160.22,160.17,21.8512]
[1724680392127,35.98132451,160.22,160.14,65.0]
[1724680392305,42.22302451,160.22,160.16,6.2437]
[1724680392625,35.98132451,160.22,160.16,15.6085]
[1724680392805,35.98132451,160.22,160.17,1.24831895]
[1724680393210,35.98132451,160.22,160.17,7.49151895]
[1724680393405,35.98132451,160.22,160.18,1.24843489]
[1724680393604,35.98132451,160.22,160.18,6.2429]
[1724680393809,35.98132451,160.22,160.19,1.24834921]
[1724680394651,35.98132451,160.22,160.17,6.2432]
[1724680396032,14.39098034,160.21,160.17,6.2432]
[1724680396529,14.39098034,160.19,160.16,21.8519]
[1724680396707,14.39098034,160.19,160.17,1.56313011]
[1724680396910,14.39098034,160.19,160.16,21.8519]
[1724680397098,14.39098034,160.19,160.17,1.56311931]
[1724680397409,0.8277002,160.24,160.18,1.24849922]
[1724680397612,0.8277002,160.24,160.22,6.2412]
[1724680397841,0.8277002,160.24,160.21,6.2417]
[1724680398137,15.21868054,160.24,160.2,21.8471]
[1724680399038,15.21868054,160.24,160.21,7.80439989]
[1724680399205,15.21868054,160.24,160.21,6.2416]
[1724680399402,15.21868054,160.24,160.2,21.8468]
[1724680399629,15.21868054,160.24,160.21,1.56280901]
[1724680399904,15.21868054,160.24,160.21,6.2416]
[1724680401443,15.21868054,160.24,160.2,21.8469]
[1724680401937,15.21868054,160.24,160.21,1.5627869]
[1724680402116,15.21868054,160.24,160.2,21.8469]
[1724680402814,15.21868054,160.24,160.21,6.2417]
[1724680404216,0.8277002,160.24,160.22,16.85105931]
[1724680404920,0.8277002,160.24,160.23,6.241]
[1724680406743,15.21868054,160.24,160.22,15.603]
[1724680407055,6.2415,160.22,160.17,22.1528]
[1724680407341,72.7826019,160.24,160.18,1.56304766]
[1724680407342,14.39098034,160.2,160.18,1.56304766]
[1724680407543,14.39098034,160.2,160.18,6.2429]
[1724680407924,14.39098034,160.2,160.15,15.6101]
[1724680408120,14.39098034,160.2,160.16,7.8065072]
[1724680408322,14.39098034,160.2,160.17,1.5631072]
[1724680408644,14.39098034,160.2,160.16,6.2434]
[1724680409046,14.39098034,160.18,160.17,1.56312299]
[1724680409247,14.39098034,160.18,160.12,15.613]
[1724680409547,14.39098034,160.14,160.13,1.56338081]
[1724680409914,14.39098034,160.14,160.09,38.4228]
[1724680410116,14.39098034,160.12,160.1,1.56363977]
[1724680410338,14.39098034,160.12,160.07,6.247]
[1724680410538,14.39098034,160.08,160.06,4.73460044]
[1724680410843,14.39098034,160.08,160.05,15.6194]
[1724680411222,14.39098034,160.08,160.06,1.56397468]
[1724680411545,14.39098034,160.08,160.06,7.81137468]
[1724680411746,14.39098034,160.08,160.06,6.2474]
[1724680411930,6.2445,160.14,160.07,6.2472]
[1724680412125,36.02184776,160.12,160.08,1.24920061]
[1724680412331,36.02184776,160.12,160.07,6.2472]
[1724680412542,36.02184776,160.12,160.08,1.24917206]
[1724680413415,42.26634776,160.14,160.07,7.81104723]
[1724680413616,6.2441,160.15,160.08,51.99569149]
[1724680413948,6.2441,160.15,160.09,21.1539]
[1724680414147,6.2441,160.15,160.1,1.2489597]
[1724680415039,6.2441,160.15,160.09,21.1539]
[1724680415425,36.02184776,160.12,160.07,6.2472]
[1724680415624,36.02184776,160.14,160.08,7.49581088]
[1724680415929,36.02184776,160.14,160.08,6.2467]
[1724680418558,42.26644776,160.14,160.08,6.2467]
[1724680418952,42.26644776,160.14,160.07,21.8645]
[1724680419338,36.02184776,160.12,160.07,21.8645]
[1724680419545,42.26714776,160.12,160.07,15.6173]
[1724680419756,36.02184776,160.12,160.08,1.24923652]
[1724680420264,36.02184776,160.12,160.07,21.8645]
[1724680421939,36.02184776,160.12,160.08,6.2468]
[1724680422732,36.02184776,160.12,160.07,15.6173]
[1724680423739,36.02184776,160.14,160.07,15.6173]
[1724680424032,36.02184776,160.14,160.08,44.392306]
[1724680424856,42.26664776,160.14,160.08,6.2467]
[1724680425039,36.02184776,160.14,160.07,15.6173]
[1724680426064,6.2449,160.13,160.07,21.8641]
[1724680426664,399.4058,160.2,160.08,1.24913016]
[1724680426846,6.2433,160.17,160.12,6.2452]
[1724680427243,6.2433,160.17,160.11,6.2456]
[1724680427444,6.2433,160.17,160.12,1.24883208]
[1724680428444,42.26404776,160.2,160.14,6.2445]
[1724680429040,36.02184776,160.18,160.13,21.3629]
[1724680429234,6.2434,160.17,160.13,21.3629]
[1724680429462,36.02184776,160.18,160.13,21.3629]
[1724680429654,36.02184776,160.16,160.13,21.3629]
[1724680429861,36.02184776,160.16,160.11,6.2456]
[1724680432556,42.26564776,160.16,160.1,6.2459]
[1724680432761,36.02184776,160.14,160.09,44.5814]
[1724680434149,36.02184776,160.14,160.09,22.7193]
[1724680434370,36.02184776,160.14,160.08,6.2467]
[1724680435245,36.02184776,160.16,160.09,7.49545241]
[1724680435981,6.2441,160.15,160.09,7.49545241]
[1724680438486,6.2445,160.14,160.09,6.2464]
[1724680438857,6.2445,160.14,160.1,1.24906787]
[1724680439472,15.607,160.19,160.08,15.6166]
[1724680439704,383.8,160.21,160.13,6.2448]
[1724680439981,6.2429,160.19,160.12,27.5633]
[1724680440159,36.02184776,160.2,160.12,27.5633]
[1724680440160,6.243,160.18,160.12,27.5633]
[1724680440688,383.8,160.21,160.13,15.6115]
[1724680440862,383.8,160.21,160.13,45.0]
[1724680441486,36.02184776,160.2,160.13,66.8569]
[1724680441658,6.2426,160.19,160.13,21.857]
[1724680441867,42.26504776,160.18,160.12,27.5633]
[1724680442292,42.26564776,160.16,160.12,21.3181]
[1724680443179,6.2438,160.16,160.12,21.3181]
[1724680443897,6.2433,160.17,160.12,21.3181]
[1724680444575,36.02184776,160.14,160.08,22.3872]
[1724680444769,36.02184776,160.12,160.08,22.3872]
[1724680446597,42.26664776,160.14,160.08,22.3872]
[1724680447783,36.02184776,160.14,160.08,22.3872]
[1724680447996,36.02184776,160.16,160.09,7.49554468]
[1724680448177,6.2441,160.15,160.09,6.2464]
[1724680449167,42.26664776,160.14,160.08,22.3872]
[1724680449360,42.26664776,160.14,160.08,28.634]
[1724680449587,42.26664776,160.14,160.09,1.24914608]
[1724680449894,42.26574776,160.16,160.09,7.49541374]
[1724680451172,36.02184776,160.16,160.1,60.615]
[1724680451595,42.26564776,160.16,160.1,15.615]
[1724680451901,36.02184776,160.14,160.08,28.6336]
[1724680452271,36.02184776,160.14,160.09,1.56377489]
[1724680452469,36.02184776,160.14,160.08,28.6336]
[1724680452671,36.02184776,160.14,160.09,1.56377489]
[1724680452970,42.26714776,160.12,160.08,22.3872]
[1724680453172,42.26714776,160.12,160.09,1.56379449]
[1724680453367,42.26714776,160.12,160.08,22.3872]
[1724680453596,42.26714776,160.12,160.09,1.5637944]
[1724680453776,42.26664776,160.14,160.08,23.63647668]
[1724680453976,42.26664776,160.14,160.08,22.3872]
[1724680453977,6.245,160.13,160.08,22.3872]
[1724680454287,42.26714776,160.12,160.08,22.3872]
[1724680454483,6.2457,160.11,160.08,22.3872]
[1724680454881,36.02184776,160.1,160.08,22.3872]
[1724680455895,42.26804776,160.1,160.08,22.3872]
[1724680456078,6.2467,160.09,160.04,21.3626]
[1724680456281,6.2467,160.09,160.05,1.56415553]
[1724680456491,36.02184776,160.1,160.06,1.56415553]
[1724680456492,42.26814776,160.1,160.06,1.56415553]
[1724680456688,6.2465,160.09,160.04,21.3626]
[1724680456889,42.26884776,160.08,160.05,1.56414373]
[1724680457101,36.02184776,160.08,160.04,21.3626]
[1724680457302,6.2465,160.09,160.05,1.56420751]
[1724680457600,6.2465,160.09,160.04,22.61211732]
[1724680457798,6.2465,160.09,160.05,1.56421214]
[1724680457979,6.2465,160.09,160.04,27.6109]
[1724680458186,36.02184776,160.1,160.05,7.81212043]
[1724680458498,6.2465,160.09,160.04,21.3626]
[1724680458814,6.2465,160.09,160.05,1.56415384]
[1724680459012,42.26804776,160.1,160.04,27.611]
[1724680459309,42.26804776,160.1,160.05,1.56413029]
[1724680459499,42.26804776,160.1,160.06,1.56413029]
[1724680459681,42.26804776,160.1,160.04,28.86052001]
[1724680460018,36.02184776,160.08,160.05,1.56409056]
[1724680460192,36.02184776,160.08,160.04,21.3626]
[1724680460385,42.26874776,160.08,160.05,1.56415073]
[1724680460591,42.26874776,160.08,160.04,21.3626]
[1724680460780,42.26874776,160.08,160.05,1.56417413]
[1724680460979,42.26874776,160.08,160.04,21.3626]
[1724680461202,6.2472,160.07,160.04,21.3626]
[1724680461404,6.2488,160.03,160.0,22.6589]
[1724680461621,36.02184776,160.03,160.0,22.6589]
[1724680462405,42.27064776,160.03,160.0,22.6589]
[1724680462588,36.02184776,160.03,160.0,22.6589]
[1724680463308,42.27074776,160.03,160.0,22.6589]
[1724680463506,51.63924776,160.08,159.97,15.6278]
[1724680463507,36.02184776,160.01,159.97,15.6278]
[1724680464502,36.02184776,160.01,159.96,21.6342]
[1724680465114,36.02184776,160.01,159.96,27.8856]
[1724680465290,51.63924776,160.08,159.97,16.87754265]
[1724680465291,36.02184776,160.03,159.97,16.87754265]
[1724680465485,36.02184776,160.05,159.97,16.87754265]
[1724680465890,42.27024776,160.05,159.97,16.87754265]
[1724680466190,6.2473,160.07,160.0,6.2499]
[1724680466410,6.2473,160.07,160.01,6.2495]
[1724680466723,36.02184776,160.08,160.02,6.2491]
[1724680467408,36.02184776,160.08,160.04,6.2483]
[1724680467586,36.02184776,160.1,160.05,6.248]
[1724680469096,42.26724776,160.12,160.06,6.2475]
[1724680469298,36.02184776,160.1,160.03,38.1903]
[1724680470213,36.02184776,160.08,160.03,44.439]
[1724680470517,36.02184776,160.08,160.03,38.1903]
[1724680470695,36.02184776,160.08,160.04,6.2482]
[1724680471319,36.02184776,160.08,160.03,44.439]
[1724680472912,36.02184776,160.06,160.0,15.6248]
[1724680473122,42.26964776,160.06,160.0,21.8744]
[1724680473297,36.02184776,160.06,160.01,7.49924733]
[1724680473499,36.02184776,160.06,160.01,6.2494]
[1724680474009,42.26874776,160.08,160.02,6.2491]
[1724680474208,42.26874776,160.08,160.02,7.49885023]
[1724680474412,42.26874776,160.08,160.02,6.2491]
[1724680475800,6.2473,160.07,160.02,6.2491]
[1724680476418,36.02184776,160.06,160.01,6.2495]
[1724680477042,36.02184776,160.04,160.0,15.6248]
[1724680477252,36.02184776,160.04,160.0,21.8747]
[1724680477429,6.2519,159.95,159.91,6.53679905]
[1724680477632,6.2519,159.95,159.9,22.3206]
[1724680477633,36.02184776,159.95,159.9,22.3206]
[1724680477940,42.27334776,159.97,159.9,28.5745]
[1724680478440,36.02184776,159.95,159.9,22.3206]
[1724680478615,42.27414776,159.95,159.9,22.3206]
[1724680479012,36.02184776,159.93,159.9,22.3206]
[1724680479619,42.27384776,159.95,159.91,1.25053394]
[1724680479835,42.27384776,159.95,159.9,22.3206]
[1724680480211,36.02184776,159.95,159.9,22.3206]
[1724680480816,36.02184776,159.95,159.91,1.25048995]
[1724680481011,36.02184776,159.95,159.9,22.3206]
[1724680481436,36.02184776,159.95,159.9,28.5743]
[1724680481822,36.02184776,159.91,159.9,22.3206]
[1724680482223,42.27534776,159.91,159.86,15.6382]
[1724680482418,42.27664776,159.88,159.83,15.6415]
[1724680482619,42.27664776,159.88,159.82,6.2567]
[1724680482620,36.02184776,159.84,159.82,6.2567]
[1724680482917,36.02184776,159.84,159.81,21.413]
[1724680484018,36.02184776,159.84,159.82,6.257]
[1724680484426,36.02184776,159.86,159.84,6.2562]
[1724680484637,36.02184776,159.86,159.82,6.257]
[1724680484946,36.02184776,159.86,159.82,6.2569]
[1724680486018,36.02184776,159.86,159.83,6.2565]
[1724680486317,36.02184776,159.86,159.81,43.3132]
[1724680486522,36.02184776,159.84,159.81,43.3132]
[1724680486717,36.02184776,159.84,159.81,37.0562]
[1724680486941,36.02184776,159.84,159.81,43.3136]
[1724680487625,36.02184776,159.86,159.81,37.0562]
[1724680488030,36.02184776,159.86,159.81,43.3132]
[1724680488656,36.02184776,159.86,159.82,1.25116783]
[1724680488829,36.02184776,159.86,159.83,6.2562]
[1724680489028,36.02184776,159.86,159.84,6.2561]
[1724680489535,36.02184776,159.86,159.82,45.0]
[1724680489536,36.02184776,159.86,159.83,6.2566]
[1724680489749,36.02184776,159.86,159.81,37.0562]
[1724680490052,36.02184776,159.86,159.82,45.0]
[1724680490256,36.02184776,159.84,159.82,6.2569]
[1724680491143,36.02184776,159.84,159.81,43.3135]
[1724680492277,36.02184776,159.84,159.81,37.0562]
[1724680492849,36.02184776,159.84,159.81,43.3134]
[1724680493049,36.02184776,159.86,159.82,6.257]
[1724680493357,36.02184776,159.86,159.83,6.2566]
[1724680493544,36.02184776,159.86,159.82,6.2569]
[1724680493748,36.02184776,159.86,159.81,37.0562]
[1724680493947,36.02184776,159.88,159.84,6.2562]
[1724680494338,36.02184776,159.9,159.85,7.50677758]
[1724680494545,42.27574776,159.9,159.84,6.2561]
[1724680495056,36.02184776,159.88,159.83,15.641]
[1724680495442,36.02184776,159.88,159.83,21.8976]
[1724680496069,36.02184776,159.88,159.84,7.50727721]
[1724680496278,36.02184776,159.88,159.84,6.2562]
[1724680497167,36.02184776,159.88,159.85,6.2557]
[1724680497372,36.02184776,159.9,159.86,1.25088607]
[1724680497555,36.02184776,159.9,159.86,7.50598607]
[1724680497754,36.02184776,159.92,159.87,6.255]
[1724680497957,36.02184776,159.94,159.88,22.0366]
[1724680498354,36.02184776,159.94,159.89,7.50481105]
[1724680498572,36.02184776,159.94,159.89,6.2542]
[1724680498973,36.02184776,159.94,159.88,22.0366]
[1724680498974,36.02184776,159.94,159.9,7.50451524]
[1724680499156,36.02184776,159.94,159.89,6.2542]
[1724680499491,36.02184776,159.92,159.88,22.0366]
[1724680499697,36.02184776,159.9,159.88,22.0366]
[1724680500049,36.02184776,159.92,159.88,22.0366]
[1724680500284,36.02184776,159.92,159.89,7.50489744]
[1724680500589,36.02184776,159.94,159.89,15.6349]
[1724680500881,36.02184776,159.94,159.91,6.2534]
[1724680501095,36.02184776,159.96,159.92,1.25044746]
[1724680501252,36.02184776,159.98,159.92,45.0]
[1724680501578,36.02184776,159.98,159.93,15.631]
[1724680501763,36.02184776,159.98,159.93,21.8837]
[1724680502165,42.27274776,159.98,159.93,15.631]
[1724680502366,42.27274776,159.98,159.92,51.2531]
[1724680502367,36.02184776,159.96,159.92,51.2531]
[1724680502557,36.02184776,159.96,159.92,45.0]
[1724680502757,36.02184776,159.96,159.92,51.2531]
[1724680503373,36.02184776,159.96,159.93,6.2526]
[1724680503707,383.8,160.09,159.94,1.25024046]
[1724680503984,36.02184776,160.03,159.95,15.629]
[1724680504153,45.0755264,160.05,159.97,37.1163]
[1724680504477,15.6154,160.1,159.97,37.1163]
[1724680504478,45.0755264,160.02,159.97,37.1163]
[1724680504875,45.0755264,160.02,159.98,1.24985148]
[1724680505179,45.0755264,160.05,160.0,6.2499]
[1724680505566,45.0755264,160.05,160.01,1.24965665]
[1724680505762,45.0755264,160.05,160.02,1.24967278]
[1724680506171,45.0755264,160.05,159.97,21.4894]
[1724680506391,6.2485,160.04,159.98,45.0]
[1724680506762,51.3235264,160.05,159.98,51.2507]
[1724680507190,45.0755264,160.05,159.99,6.25]
[1724680507470,45.0755264,160.05,159.98,45.0]
[1724680507471,45.0755264,160.05,160.0,51.2499]
[1724680507656,45.0755264,160.05,160.0,6.2499]
[1724680507856,45.0755264,160.05,160.01,45.0]
[1724680508072,45.0755264,160.05,159.99,6.2503]
[1724680508266,51.3235264,160.05,159.99,6.2503]
[1724680509474,6.2488,160.03,159.97,21.4894]
[1724680510699,51.3248264,160.02,159.97,21.4894]
[1724680511260,45.0755264,160.02,159.97,21.4894]
[1724680511487,45.0755264,160.08,159.93,6.1916]
[1724680511488,45.0755264,159.99,159.93,6.1916]
[1724680511695,45.0755264,159.96,159.93,6.1916]
[1724680512191,45.0755264,160.0,159.93,21.8227]
[1724680512397,51.3255264,160.0,159.94,6.2522]
[1724680512690,6.2504,159.99,159.93,28.0753]
[1724680512879,6.2508,159.98,159.93,21.8227]
[1724680513076,45.0755264,160.0,159.93,21.8227]
[1724680513264,45.0755264,160.0,159.96,6.2515]
[1724680513469,45.0755264,160.0,159.97,7.50100005]
[1724680513691,6.2488,160.03,159.97,7.50100005]
[1724680513692,45.0755264,160.03,159.98,6.2506]
[1724680513892,45.0755264,160.03,159.99,1.24984987]
[1724680514064,51.3244264,160.03,159.97,6.251]
[1724680514265,45.0755264,160.03,159.97,6.251]
[1724680514891,51.3244264,160.03,159.97,6.251]
[1724680516407,45.0755264,160.03,159.95,15.6292]
[1724680516704,45.0755264,160.03,159.96,46.25002897]
[1724680516906,51.3244264,160.03,159.97,6.2508]
[1724680517106,51.3244264,160.03,159.98,1.24984294]
[1724680517466,45.0755264,160.03,159.98,6.2507]
[1724680517668,45.0755264,160.06,160.0,6.2498]
[1724680517986,6.2475,160.07,160.01,28.1277]
[1724680518182,6.2475,160.07,160.02,46.24951917]
[1724680518393,6.2475,160.07,160.02,45.0]
[1724680519269,45.0755264,160.09,160.02,60.6227]
[1724680519996,45.0755264,160.09,160.04,6.2481]
[1724680520993,45.0755264,160.09,160.02,66.8715]
[1724680521184,45.0755264,160.09,160.02,60.6227]
[1724680521700,45.0755264,160.06,160.01,21.8782]